[Event "*** Titled Tuesday Blitz"]
[Site "Chess.com"]
[Date "2019.02.05"]
[Round "10"]
[White "maciek_92"]
[Black "iturrizaga"]
[Result "0-1"]
[WhiteElo "2761"]
[BlackElo "2853"]
[TimeControl "180+2"]
[EndTime "15:28:09 PST"]
[Termination "iturrizaga won by resignation"]

1. c4 {[%clk 0:03:01.9]} 1... Nf6 {[%clk 0:03:00.6]} 2. Nc3 {[%clk 0:03:03.3]}
2... c5 {[%clk 0:03:01.7]} 3. g3 {[%clk 0:03:04.2]} 3... g6 {[%clk 0:03:02.4]}
4. Bg2 {[%clk 0:03:05.2]} 4... Bg7 {[%clk 0:03:03.8]} 5. b3 {[%clk 0:03:05.5]}
5... O-O {[%clk 0:03:04.9]} 6. Ba3 {[%clk 0:03:06.1]} 6... d6 {[%clk 0:03:04.8]}
7. e3 {[%clk 0:03:07]} 7... Nc6 {[%clk 0:03:03.9]} 8. Nge2 {[%clk 0:03:07.8]}
8... Qd7 {[%clk 0:03:04.8]} 9. O-O {[%clk 0:03:02.4]} 9... b6 {[%clk 0:03:06]}
10. d4 {[%clk 0:03:03.4]} 10... Bb7 {[%clk 0:03:07]} 11. d5 {[%clk 0:03:02.5]}
11... Na5 {[%clk 0:03:08.1]} 12. Bb2 {[%clk 0:02:54.5]} 12... a6 {[%clk
0:03:08]} 13. Na4 {[%clk 0:02:52.5]} 13... Qc7 {[%clk 0:03:05]} 14. Qd2 {[%clk
0:02:51]} 14... b5 {[%clk 0:03:00.5]} 15. Bc3 {[%clk 0:02:52.3]} 15... b4 {[%clk
0:02:35.1]} 16. Bb2 {[%clk 0:02:52.9]} 16... Bc8 {[%clk 0:02:36.5]} 17. Rac1
{[%clk 0:02:47.4]} 17... Bd7 {[%clk 0:02:36.3]} 18. Qc2 {[%clk 0:02:47.8]} 18...
Bxa4 {[%clk 0:02:28.3]} 19. bxa4 {[%clk 0:02:49.2]} 19... Rab8 {[%clk
0:02:29.3]} 20. Bxf6 {[%clk 0:02:29.9]} 20... Bxf6 {[%clk 0:02:17]} 21. Rb1
{[%clk 0:02:31.4]} 21... Qd7 {[%clk 0:02:09.6]} 22. Nc1 {[%clk 0:02:30.1]} 22...
Bc3 {[%clk 0:01:56.4]} 23. Ne2 {[%clk 0:02:10.1]} 23... Nxc4 {[%clk 0:01:55.7]}
24. Nxc3 {[%clk 0:01:50.9]} 24... bxc3 {[%clk 0:01:55.6]} 25. Qxc3 {[%clk
0:01:48.9]} 25... Qxa4 {[%clk 0:01:53.8]} 26. h4 {[%clk 0:01:48.4]} 26... h5
{[%clk 0:01:39.5]} 27. Rb3 {[%clk 0:00:56.3]} 27... Qxa2 {[%clk 0:01:16.1]} 28.
Rxb8 {[%clk 0:00:56.7]} 28... Rxb8 {[%clk 0:01:18]} 29. Rc1 {[%clk 0:00:58.1]}
29... Rb1 {[%clk 0:01:02.8]} 30. Bf1 {[%clk 0:00:55.5]} 30... Rxc1 {[%clk
0:01:00.6]} 31. Qxc1 {[%clk 0:00:57.4]} 31... Ne5 {[%clk 0:01:01.4]} 32. Qd1
{[%clk 0:00:50.5]} 32... a5 {[%clk 0:00:52.1]} 33. Be2 {[%clk 0:00:52]} 33... a4
{[%clk 0:00:49.1]} 34. f4 {[%clk 0:00:53.2]} 34... Nd7 {[%clk 0:00:39.3]} 35. g4
{[%clk 0:00:50.4]} 35... hxg4 {[%clk 0:00:33.5]} 36. h5 {[%clk 0:00:32.9]} 36...
Qb3 {[%clk 0:00:32.7]} 37. Qd2 {[%clk 0:00:23.9]} 37... a3 {[%clk 0:00:24.9]}
38. hxg6 {[%clk 0:00:15.1]} 38... a2 {[%clk 0:00:26.1]} 39. gxf7+ {[%clk
0:00:14.4]} 39... Kxf7 {[%clk 0:00:23.8]} 40. Qe1 {[%clk 0:00:02.5]} 0-1

[Event "*** Titled Tuesday Blitz"]
[Site "Chess.com"]
[Date "2019.02.05"]
[Round "10"]
[White "KlyashtornyVladislav"]
[Black "HouseOfDurin"]
[Result "0-1"]
[WhiteElo "2188"]
[BlackElo "1948"]
[TimeControl "180+2"]
[EndTime "15:28:09 PST"]
[Termination "HouseOfDurin won by checkmate"]

1. e4 {[%clk 0:03:01.9]} 1... c5 {[%clk 0:03:00.4]} 2. Nf3 {[%clk 0:03:02.6]}
2... Nc6 {[%clk 0:03:01.2]} 3. d4 {[%clk 0:03:03.4]} 3... cxd4 {[%clk
0:03:03.1]} 4. Nxd4 {[%clk 0:03:04.5]} 4... e5 {[%clk 0:03:04.6]} 5. Nb5 {[%clk
0:03:05.4]} 5... d6 {[%clk 0:03:05.3]} 6. N1c3 {[%clk 0:03:04.5]} 6... a6 {[%clk
0:03:06.4]} 7. Na3 {[%clk 0:03:04.7]} 7... b5 {[%clk 0:03:08]} 8. Nd5 {[%clk
0:03:05.3]} 8... Be6 {[%clk 0:03:09.3]} 9. c4 {[%clk 0:03:05]} 9... b4 {[%clk
0:03:10.6]} 10. Nc2 {[%clk 0:03:05.1]} 10... a5 {[%clk 0:03:11.4]} 11. Bd3
{[%clk 0:03:04.8]} 11... Be7 {[%clk 0:03:08.7]} 12. O-O {[%clk 0:03:04.9]} 12...
Nf6 {[%clk 0:03:09.3]} 13. b3 {[%clk 0:02:54.8]} 13... O-O {[%clk 0:03:04.9]}
14. a3 {[%clk 0:02:54.4]} 14... Nd7 {[%clk 0:02:48.1]} 15. axb4 {[%clk
0:02:41.7]} 15... Bxd5 {[%clk 0:02:43.8]} 16. exd5 {[%clk 0:01:55.4]} 16... Nxb4
{[%clk 0:02:43.7]} 17. Nxb4 {[%clk 0:01:31.7]} 17... axb4 {[%clk 0:02:45.6]} 18.
Bd2 {[%clk 0:01:32.2]} 18... Qb6 {[%clk 0:02:23.8]} 19. Qg4 {[%clk 0:00:34]}
19... Nc5 {[%clk 0:01:57.7]} 20. Bc2 {[%clk 0:00:26.5]} 20... g6 {[%clk
0:01:37.1]} 21. Be3 {[%clk 0:00:21.1]} 21... Ra3 {[%clk 0:01:25]} 22. Rab1
{[%clk 0:00:13]} 22... f5 {[%clk 0:01:20.8]} 23. Qd1 {[%clk 0:00:11.7]} 23... f4
{[%clk 0:01:16.1]} 24. Bc1 {[%clk 0:00:09.5]} 24... Ra2 {[%clk 0:01:16.1]} 25.
Kh1 {[%clk 0:00:10.3]} 25... Rfa8 {[%clk 0:01:14.2]} 26. Bb2 {[%clk 0:00:07.7]}
26... Bf6 {[%clk 0:00:37.6]} 27. Qg4 {[%clk 0:00:07.5]} 27... Kg7 {[%clk
0:00:37.9]} 28. h4 {[%clk 0:00:06.5]} 28... h5 {[%clk 0:00:38.3]} 29. Qh3 {[%clk
0:00:07]} 29... Qd8 {[%clk 0:00:30.4]} 30. g3 {[%clk 0:00:07.6]} 30... e4 {[%clk
0:00:21.4]} 31. Bxf6+ {[%clk 0:00:02.1]} 31... Qxf6 {[%clk 0:00:23.3]} 32. Bd1
{[%clk 0:00:02.5]} 32... f3 {[%clk 0:00:18.2]} 33. Kg1 {[%clk 0:00:02.1]} 33...
Rd2 {[%clk 0:00:17.9]} 34. g4 {[%clk 0:00:02.7]} 34... Raa2 {[%clk 0:00:18.6]}
35. gxh5 {[%clk 0:00:03.1]} 35... gxh5 {[%clk 0:00:19.9]} 36. Qg3+ {[%clk
0:00:04.4]} 36... Qg6 {[%clk 0:00:19.7]} 37. Rc1 {[%clk 0:00:03.2]} 37... Qxg3+
{[%clk 0:00:18.1]} 38. fxg3 {[%clk 0:00:05.1]} 38... Nd3 {[%clk 0:00:19.4]} 39.
Rb1 {[%clk 0:00:04.7]} 39... Rg2+ {[%clk 0:00:19.7]} 40. Kh1 {[%clk 0:00:05.4]}
40... Rh2+ {[%clk 0:00:21]} 41. Kg1 {[%clk 0:00:05.8]} 41... Rag2# {[%clk
0:00:22.6]} 0-1

[Event "*** Titled Tuesday Blitz"]
[Site "Chess.com"]
[Date "2019.02.05"]
[Round "10"]
[White "Alopekos"]
[Black "Koksik_13"]
[Result "1-0"]
[WhiteElo "2520"]
[BlackElo "2656"]
[TimeControl "180+2"]
[EndTime "15:28:19 PST"]
[Termination "Alopekos won on time"]

1. e4 {[%clk 0:02:36.9]} 1... a6 {[%clk 0:02:50.3]} 2. d4 {[%clk 0:02:36.5]}
2... b5 {[%clk 0:02:51.9]} 3. Nf3 {[%clk 0:02:31.1]} 3... Bb7 {[%clk 0:02:53.8]}
4. Bd3 {[%clk 0:02:32.7]} 4... e6 {[%clk 0:02:54.8]} 5. O-O {[%clk 0:02:32.7]}
5... d5 {[%clk 0:02:56.4]} 6. e5 {[%clk 0:02:23.8]} 6... c5 {[%clk 0:02:38.7]}
7. c3 {[%clk 0:02:23.4]} 7... Nh6 {[%clk 0:02:39.2]} 8. Ng5 {[%clk 0:02:01.3]}
8... Nc6 {[%clk 0:02:29.1]} 9. Nxh7 {[%clk 0:01:47.4]} 9... Be7 {[%clk
0:02:22.9]} 10. Bxh6 {[%clk 0:01:31]} 10... gxh6 {[%clk 0:02:20]} 11. Qg4 {[%clk
0:01:32.5]} 11... Qb6 {[%clk 0:02:20.6]} 12. Qg7 {[%clk 0:01:29.8]} 12... O-O-O
{[%clk 0:02:21.2]} 13. Qxf7 {[%clk 0:01:31.1]} 13... Kb8 {[%clk 0:02:17.6]} 14.
Nf6 {[%clk 0:01:19.5]} 14... Bxf6 {[%clk 0:02:17.3]} 15. exf6 {[%clk 0:01:12.1]}
15... cxd4 {[%clk 0:02:18.8]} 16. Qxe6 {[%clk 0:01:10.2]} 16... Ka7 {[%clk
0:02:18.5]} 17. f7 {[%clk 0:00:38.1]} 17... Rhf8 {[%clk 0:02:18.2]} 18. a4
{[%clk 0:00:33.1]} 18... b4 {[%clk 0:02:18.1]} 19. a5 {[%clk 0:00:30.9]} 19...
Qc7 {[%clk 0:02:19]} 20. cxb4 {[%clk 0:00:26.5]} 20... Rxf7 {[%clk 0:02:15.6]}
21. b5 {[%clk 0:00:25.1]} 21... axb5 {[%clk 0:02:16]} 22. Na3 {[%clk 0:00:26.1]}
22... Rd6 {[%clk 0:02:16]} 23. Nxb5+ {[%clk 0:00:26.7]} 23... Kb8 {[%clk
0:02:16.8]} 24. Qxd6 {[%clk 0:00:23.1]} 24... Qxd6 {[%clk 0:01:48.9]} 25. Nxd6
{[%clk 0:00:25]} 25... Rg7 {[%clk 0:01:49.3]} 26. Rfe1 {[%clk 0:00:17.6]} 26...
Nb4 {[%clk 0:01:50]} 27. Ra3 {[%clk 0:00:13.2]} 27... Ka7 {[%clk 0:01:34.1]} 28.
a6 {[%clk 0:00:12]} 28... Bc6 {[%clk 0:01:34.9]} 29. Rb3 {[%clk 0:00:05.8]}
29... Na2 {[%clk 0:01:25.2]} 30. Ra1 {[%clk 0:00:05.4]} 30... Re7 {[%clk
0:01:26.2]} 31. Nc8+ {[%clk 0:00:02.7]} 31... Ka8 {[%clk 0:01:26.2]} 32. Nxe7
{[%clk 0:00:04.6]} 32... Ba4 {[%clk 0:01:28.1]} 33. Ra3 {[%clk 0:00:04.1]} 33...
Nc3 {[%clk 0:01:29.2]} 34. bxc3 {[%clk 0:00:04.9]} 34... dxc3 {[%clk 0:01:30.3]}
35. Rxa4 {[%clk 0:00:06.2]} 35... c2 {[%clk 0:01:29.4]} 36. Bxc2 {[%clk
0:00:07.4]} 36... d4 {[%clk 0:01:30.6]} 37. Rb1 {[%clk 0:00:07.1]} 37... d3
{[%clk 0:01:32]} 38. Bxd3 {[%clk 0:00:08.6]} 1-0

[Event "*** Titled Tuesday Blitz"]
[Site "Chess.com"]
[Date "2019.02.05"]
[Round "10"]
[White "Hieronymus00"]
[Black "HindsightIs2700"]
[Result "0-1"]
[WhiteElo "2174"]
[BlackElo "2257"]
[TimeControl "180+2"]
[EndTime "15:28:19 PST"]
[Termination "HindsightIs2700 won by checkmate"]

1. e4 {[%clk 0:03:01.9]} 1... c5 {[%clk 0:03:01.1]} 2. Nf3 {[%clk 0:03:02.6]}
2... d6 {[%clk 0:03:02.6]} 3. d4 {[%clk 0:03:03.3]} 3... cxd4 {[%clk 0:03:04.5]}
4. Nxd4 {[%clk 0:03:04.4]} 4... Nf6 {[%clk 0:03:06.2]} 5. Nc3 {[%clk 0:03:04.1]}
5... a6 {[%clk 0:03:07.3]} 6. Bg5 {[%clk 0:03:04.3]} 6... Nbd7 {[%clk
0:03:08.1]} 7. Bc4 {[%clk 0:03:05]} 7... Qb6 {[%clk 0:03:08.1]} 8. Bb3 {[%clk
0:03:02.9]} 8... e6 {[%clk 0:03:07.2]} 9. Be3 {[%clk 0:02:48.3]} 9... Nc5 {[%clk
0:02:58.2]} 10. Qf3 {[%clk 0:02:46.4]} 10... Qc7 {[%clk 0:02:54.5]} 11. O-O-O
{[%clk 0:02:44.9]} 11... Be7 {[%clk 0:02:54.1]} 12. g4 {[%clk 0:02:39.1]} 12...
b5 {[%clk 0:02:21.6]} 13. g5 {[%clk 0:02:09.5]} 13... Nfd7 {[%clk 0:02:15.4]}
14. Rhe1 {[%clk 0:02:05.1]} 14... Bb7 {[%clk 0:02:12.3]} 15. Qg4 {[%clk
0:01:36]} 15... Ne5 {[%clk 0:02:05.7]} 16. Qh4 {[%clk 0:01:27.6]} 16... b4
{[%clk 0:01:30.8]} 17. Na4 {[%clk 0:01:15.3]} 17... Nxe4 {[%clk 0:01:12.3]} 18.
f4 {[%clk 0:01:03.6]} 18... Ng6 {[%clk 0:00:53.5]} 19. Qh3 {[%clk 0:01:03.5]}
19... O-O {[%clk 0:00:45.8]} 20. Nxe6 {[%clk 0:00:38.1]} 20... fxe6 {[%clk
0:00:45.2]} 21. Bxe6+ {[%clk 0:00:38.3]} 21... Kh8 {[%clk 0:00:44.1]} 22. f5
{[%clk 0:00:39.2]} 22... Nxg5 {[%clk 0:00:41]} 23. Bxg5 {[%clk 0:00:24.6]} 23...
Bxg5+ {[%clk 0:00:42.1]} 24. Kb1 {[%clk 0:00:26.1]} 24... Nf4 {[%clk 0:00:40.4]}
25. Qg4 {[%clk 0:00:21.7]} 25... Nxe6 {[%clk 0:00:40.6]} 26. fxe6 {[%clk
0:00:22.5]} 26... Bf6 {[%clk 0:00:38.1]} 27. Rd3 {[%clk 0:00:19]} 27... Rac8
{[%clk 0:00:36.1]} 28. Rc1 {[%clk 0:00:19.3]} 28... Qc4 {[%clk 0:00:36.5]} 29.
Qh3 {[%clk 0:00:18.9]} 29... Be4 {[%clk 0:00:35.6]} 30. Nb6 {[%clk 0:00:17.3]}
30... Qc6 {[%clk 0:00:28.7]} 31. Nxc8 {[%clk 0:00:18.3]} 31... Rxc8 {[%clk
0:00:25.3]} 32. Rg3 {[%clk 0:00:09.5]} 32... Bxc2+ {[%clk 0:00:23.7]} 33. Ka1
{[%clk 0:00:10.7]} 33... Qe8 {[%clk 0:00:10.8]} 34. Qg2 {[%clk 0:00:08.8]} 34...
Bf5 {[%clk 0:00:08.7]} 35. Qg1 {[%clk 0:00:05.9]} 35... Bxe6 {[%clk 0:00:08.2]}
36. Re3 {[%clk 0:00:05]} 36... Qd7 {[%clk 0:00:04.9]} 37. Rce1 {[%clk
0:00:04.9]} 37... Bf7 {[%clk 0:00:05.2]} 38. h4 {[%clk 0:00:05.2]} 38... h6
{[%clk 0:00:06.5]} 39. h5 {[%clk 0:00:06.1]} 39... Qc6 {[%clk 0:00:07.3]} 40.
Rd1 {[%clk 0:00:03.5]} 40... Qc2 {[%clk 0:00:08.2]} 41. Ree1 {[%clk 0:00:03.8]}
41... Qxb2# {[%clk 0:00:09.2]} 0-1

[Event "*** Titled Tuesday Blitz"]
[Site "Chess.com"]
[Date "2019.02.05"]
[Round "10"]
[White "King_of_the_wing"]
[Black "Supelyel"]
[Result "0-1"]
[WhiteElo "2181"]
[BlackElo "2323"]
[TimeControl "180+2"]
[EndTime "15:28:22 PST"]
[Termination "Supelyel won by resignation"]

1. e4 {[%clk 0:03:01.9]} 1... c5 {[%clk 0:02:59.7]} 2. Nf3 {[%clk 0:03:02.6]}
2... Nc6 {[%clk 0:03:00.5]} 3. d4 {[%clk 0:03:02.7]} 3... cxd4 {[%clk
0:03:00.5]} 4. Nxd4 {[%clk 0:03:04.6]} 4... Nf6 {[%clk 0:03:01.2]} 5. Nc3 {[%clk
0:03:05.1]} 5... d6 {[%clk 0:03:02]} 6. Bb5 {[%clk 0:03:05]} 6... Bd7 {[%clk
0:02:59.7]} 7. O-O {[%clk 0:03:05.6]} 7... e5 {[%clk 0:02:58.2]} 8. Nxc6 {[%clk
0:03:05.3]} 8... bxc6 {[%clk 0:02:58.5]} 9. Bc4 {[%clk 0:03:03.6]} 9... Be7
{[%clk 0:02:59.1]} 10. Be3 {[%clk 0:03:01.5]} 10... O-O {[%clk 0:02:52.5]} 11.
h3 {[%clk 0:03:00.4]} 11... Be6 {[%clk 0:02:47.3]} 12. Bxe6 {[%clk 0:02:45.4]}
12... fxe6 {[%clk 0:02:49.2]} 13. f4 {[%clk 0:02:44.1]} 13... exf4 {[%clk
0:02:46.9]} 14. Rxf4 {[%clk 0:02:44.6]} 14... Qa5 {[%clk 0:02:10.8]} 15. Qd2
{[%clk 0:02:38]} 15... Rfe8 {[%clk 0:01:50.8]} 16. Nd5 {[%clk 0:02:26.4]} 16...
Qxd2 {[%clk 0:01:43.9]} 17. Nxe7+ {[%clk 0:02:27.4]} 17... Rxe7 {[%clk
0:01:44.5]} 18. Bxd2 {[%clk 0:02:29]} 18... e5 {[%clk 0:01:42.8]} 19. Rh4 {[%clk
0:02:30]} 19... h6 {[%clk 0:01:32.3]} 20. Kf2 {[%clk 0:02:12.2]} 20... g5 {[%clk
0:01:18]} 21. Rxh6 {[%clk 0:02:08.1]} 21... Kg7 {[%clk 0:01:19.1]} 22. Bxg5
{[%clk 0:01:39.7]} 22... Nxe4+ {[%clk 0:01:19.3]} 23. Ke3 {[%clk 0:01:37.8]}
23... Nxg5 {[%clk 0:01:17.8]} 24. Rxd6 {[%clk 0:01:38.7]} 24... Re6 {[%clk
0:01:18]} 25. Rd7+ {[%clk 0:01:35.4]} 25... Nf7 {[%clk 0:01:18]} 26. Rf1 {[%clk
0:01:23.5]} 26... Rf6 {[%clk 0:01:18.4]} 27. Rxf6 {[%clk 0:01:22.5]} 27... Kxf6
{[%clk 0:01:20.3]} 28. Rc7 {[%clk 0:01:23.7]} 28... Ke6 {[%clk 0:01:01.9]} 29.
Rxc6+ {[%clk 0:01:23.9]} 29... Nd6 {[%clk 0:01:00.9]} 30. c4 {[%clk 0:01:14.1]}
30... Kd7 {[%clk 0:00:55.5]} 31. Rc5 {[%clk 0:01:14.5]} 31... Re8 {[%clk
0:00:48.1]} 32. b3 {[%clk 0:01:08.3]} 32... e4 {[%clk 0:00:43.2]} 33. g4 {[%clk
0:01:04.7]} 33... Rf8 {[%clk 0:00:40.2]} 34. Ra5 {[%clk 0:01:01.5]} 34... Rf3+
{[%clk 0:00:40.7]} 35. Kd4 {[%clk 0:00:56.4]} 35... Rd3+ {[%clk 0:00:40.3]} 36.
Ke5 {[%clk 0:00:57.3]} 36... e3 {[%clk 0:00:41.6]} 37. Rxa7+ {[%clk 0:00:57.1]}
37... Kd8 {[%clk 0:00:40.7]} 38. Kf6 {[%clk 0:00:40.9]} 38... Ne4+ {[%clk
0:00:32.4]} 39. Kf5 {[%clk 0:00:39.6]} 39... e2 {[%clk 0:00:33.5]} 40. Ra8+
{[%clk 0:00:24.1]} 40... Kd7 {[%clk 0:00:29.5]} 41. Kxe4 {[%clk 0:00:25.4]}
41... Rd1 {[%clk 0:00:19.9]} 42. Ra7+ {[%clk 0:00:24.6]} 42... Kc8 {[%clk
0:00:20.7]} 0-1

[Event "*** Titled Tuesday Blitz"]
[Site "Chess.com"]
[Date "2019.02.05"]
[Round "10"]
[White "iLuusions"]
[Black "Frolik67"]
[Result "1-0"]
[WhiteElo "2627"]
[BlackElo "2526"]
[TimeControl "180+2"]
[EndTime "15:28:24 PST"]
[Termination "iLuusions won by checkmate"]

1. d4 {[%clk 0:03:01.1]} 1... e6 {[%clk 0:02:59.5]} 2. c4 {[%clk 0:03:03]} 2...
d5 {[%clk 0:02:59.6]} 3. Nf3 {[%clk 0:03:04.3]} 3... Nf6 {[%clk 0:03:00.1]} 4.
g3 {[%clk 0:03:05.2]} 4... c6 {[%clk 0:02:57.9]} 5. Qc2 {[%clk 0:03:04.9]} 5...
Be7 {[%clk 0:02:58.8]} 6. Bg2 {[%clk 0:03:06.2]} 6... O-O {[%clk 0:02:59.5]} 7.
O-O {[%clk 0:03:07.8]} 7... Nbd7 {[%clk 0:03:00]} 8. Rd1 {[%clk 0:03:07.7]} 8...
Re8 {[%clk 0:03:00.4]} 9. b3 {[%clk 0:03:08.4]} 9... h6 {[%clk 0:03:00]} 10. Nc3
{[%clk 0:03:09]} 10... b6 {[%clk 0:02:58.1]} 11. e4 {[%clk 0:03:09]} 11... Bb7
{[%clk 0:02:53.7]} 12. Bb2 {[%clk 0:03:04.2]} 12... Rc8 {[%clk 0:02:48.6]} 13.
Rac1 {[%clk 0:02:54.8]} 13... a5 {[%clk 0:02:20]} 14. e5 {[%clk 0:02:49]} 14...
Nh7 {[%clk 0:02:19.2]} 15. cxd5 {[%clk 0:02:50.2]} 15... cxd5 {[%clk 0:02:16.6]}
16. Qe2 {[%clk 0:02:50.5]} 16... Nb8 {[%clk 0:02:08.3]} 17. h4 {[%clk
0:02:33.8]} 17... Ba6 {[%clk 0:02:07.3]} 18. Qe3 {[%clk 0:02:34.5]} 18... Qd7
{[%clk 0:02:04.1]} 19. a4 {[%clk 0:02:12.7]} 19... Nc6 {[%clk 0:01:55.2]} 20.
Nb5 {[%clk 0:01:29.1]} 20... Bxb5 {[%clk 0:01:40]} 21. axb5 {[%clk 0:01:27.7]}
21... Na7 {[%clk 0:01:41.4]} 22. Bf1 {[%clk 0:01:24.1]} 22... Nxb5 {[%clk
0:01:40.4]} 23. Bd3 {[%clk 0:01:12.4]} 23... Na7 {[%clk 0:01:36.1]} 24. Qf4
{[%clk 0:01:10.4]} 24... Nf8 {[%clk 0:01:23.5]} 25. g4 {[%clk 0:01:02.4]} 25...
Rxc1 {[%clk 0:01:18.1]} 26. Rxc1 {[%clk 0:01:03.3]} 26... Rc8 {[%clk 0:01:19.4]}
27. Rd1 {[%clk 0:01:03.6]} 27... Ng6 {[%clk 0:01:13.4]} 28. Qg3 {[%clk
0:01:01.4]} 28... Qd8 {[%clk 0:01:03.9]} 29. g5 {[%clk 0:01:01.5]} 29... h5
{[%clk 0:01:01.6]} 30. Ne1 {[%clk 0:01:00.8]} 30... Nf8 {[%clk 0:00:58.8]} 31.
g6 {[%clk 0:00:56.3]} 31... fxg6 {[%clk 0:00:59.4]} 32. Ng2 {[%clk 0:00:56.4]}
32... Nc6 {[%clk 0:00:53.3]} 33. Bxg6 {[%clk 0:00:52.6]} 33... Nb4 {[%clk
0:00:39.2]} 34. Bb1 {[%clk 0:00:45.9]} 34... b5 {[%clk 0:00:35.2]} 35. Kh2
{[%clk 0:00:45.3]} 35... a4 {[%clk 0:00:35.6]} 36. bxa4 {[%clk 0:00:43.2]} 36...
bxa4 {[%clk 0:00:37.5]} 37. Rg1 {[%clk 0:00:44.2]} 37... Qc7 {[%clk 0:00:23.1]}
38. Nf4 {[%clk 0:00:43.1]} 38... Bd8 {[%clk 0:00:23.3]} 39. Nxh5 {[%clk
0:00:39.6]} 39... Qf7 {[%clk 0:00:19.5]} 40. Nxg7 {[%clk 0:00:36.3]} 40... a3
{[%clk 0:00:17.7]} 41. Nf5+ {[%clk 0:00:21.6]} 41... Kh8 {[%clk 0:00:18.2]} 42.
Nh6 {[%clk 0:00:17.9]} 42... Qh7 {[%clk 0:00:06]} 43. Qg8+ {[%clk 0:00:17.5]}
43... Qxg8 {[%clk 0:00:06.8]} 44. Rxg8# {[%clk 0:00:19.4]} 1-0

[Event "*** Titled Tuesday Blitz"]
[Site "Chess.com"]
[Date "2019.02.05"]
[Round "10"]
[White "LuisFSiles"]
[Black "sergeikim"]
[Result "0-1"]
[WhiteElo "2272"]
[BlackElo "2467"]
[TimeControl "180+2"]
[EndTime "15:28:30 PST"]
[Termination "sergeikim won on time"]

1. e4 {[%clk 0:03:01.9]} 1... e5 {[%clk 0:02:59.4]} 2. Nf3 {[%clk 0:03:02.5]}
2... Nc6 {[%clk 0:03:00.2]} 3. Bc4 {[%clk 0:03:03.5]} 3... Bc5 {[%clk 0:03:00]}
4. O-O {[%clk 0:03:04]} 4... Nf6 {[%clk 0:03:00.1]} 5. d4 {[%clk 0:03:05.1]}
5... Bxd4 {[%clk 0:03:01]} 6. Nxd4 {[%clk 0:03:04.2]} 6... Nxd4 {[%clk
0:03:01.9]} 7. Bg5 {[%clk 0:03:05.1]} 7... d6 {[%clk 0:03:02.6]} 8. f4 {[%clk
0:02:55.2]} 8... Be6 {[%clk 0:02:58.8]} 9. Na3 {[%clk 0:02:54.4]} 9... Qe7
{[%clk 0:02:54.3]} 10. c3 {[%clk 0:02:52]} 10... Nc6 {[%clk 0:02:53.9]} 11. f5
{[%clk 0:02:34.7]} 11... Bxc4 {[%clk 0:02:39.2]} 12. Nxc4 {[%clk 0:02:36.6]}
12... Nb8 {[%clk 0:02:39.4]} 13. Qb3 {[%clk 0:02:28.5]} 13... b6 {[%clk
0:02:29.9]} 14. Ne3 {[%clk 0:02:18]} 14... c6 {[%clk 0:02:29.9]} 15. Rad1 {[%clk
0:02:10.7]} 15... O-O {[%clk 0:02:06.7]} 16. Ng4 {[%clk 0:01:45.3]} 16... Nbd7
{[%clk 0:02:06]} 17. Qa3 {[%clk 0:01:37.1]} 17... Nc5 {[%clk 0:01:52.9]} 18.
Rfe1 {[%clk 0:00:56.3]} 18... a5 {[%clk 0:01:43.5]} 19. Re3 {[%clk 0:00:49.6]}
19... Kh8 {[%clk 0:01:38.1]} 20. b3 {[%clk 0:00:39.7]} 20... b5 {[%clk
0:01:13.2]} 21. Bxf6 {[%clk 0:00:33.5]} 21... gxf6 {[%clk 0:01:13.3]} 22. Qc1
{[%clk 0:00:33.8]} 22... Rg8 {[%clk 0:01:08.3]} 23. h3 {[%clk 0:00:31]} 23...
Rg5 {[%clk 0:01:01.2]} 24. b4 {[%clk 0:00:28.8]} 24... Nb7 {[%clk 0:00:55.1]}
25. Qd2 {[%clk 0:00:23.5]} 25... axb4 {[%clk 0:00:53]} 26. cxb4 {[%clk
0:00:24.1]} 26... Rag8 {[%clk 0:00:50]} 27. Re2 {[%clk 0:00:24.8]} 27... Qd8
{[%clk 0:00:33.5]} 28. Rc1 {[%clk 0:00:24.9]} 28... c5 {[%clk 0:00:26.7]} 29.
Nh6 {[%clk 0:00:23.4]} 29... Rf8 {[%clk 0:00:22.2]} 30. Qd5 {[%clk 0:00:24.4]}
30... Qe7 {[%clk 0:00:21.2]} 31. bxc5 {[%clk 0:00:19.5]} 31... Nxc5 {[%clk
0:00:21.8]} 32. Rb1 {[%clk 0:00:18.8]} 32... Rh5 {[%clk 0:00:21.7]} 33. Ng4
{[%clk 0:00:18.6]} 33... Rb8 {[%clk 0:00:21.5]} 34. Reb2 {[%clk 0:00:18.5]}
34... Qa7 {[%clk 0:00:20.8]} 35. Rxb5 {[%clk 0:00:17.8]} 35... Nxe4+ {[%clk
0:00:14.6]} 36. Kh2 {[%clk 0:00:11.6]} 36... Rxb5 {[%clk 0:00:15.1]} 37. Rxb5
{[%clk 0:00:11.2]} 37... Ng5 {[%clk 0:00:14.1]} 38. Nxf6 {[%clk 0:00:05.1]}
38... Rxh3+ {[%clk 0:00:11.5]} 39. gxh3 {[%clk 0:00:04.8]} 39... Qf2+ {[%clk
0:00:12.2]} 40. Qg2 {[%clk 0:00:06.4]} 40... Nf3+ {[%clk 0:00:09.5]} 41. Kh1
{[%clk 0:00:03.4]} 41... Qe1+ {[%clk 0:00:10.2]} 0-1